[Event "Early-Titled-Tuesday-Blitz-September-26-2023"]
[Site "Chess.com"]
[Date "2023.09.26"]
[Round "7"]
[White "artin10862"]
[Black "astralpulse"]
[Result "1-0"]
[WhiteElo "2895"]
[BlackElo "2657"]
[TimeControl "180+1"]
[EndTime "9:19:58 PDT"]
[Termination "artin10862 won by resignation"]

1. c4 {[%clk 0:02:53.1]} 1... e6 {[%clk 0:02:59.2]} 2. d4 {[%clk 0:02:52]} 2...
d5 {[%clk 0:02:59.1]} 3. Nc3 {[%clk 0:02:52.4]} 3... Nf6 {[%clk 0:02:59]} 4. Nf3
{[%clk 0:02:48.8]} 4... Be7 {[%clk 0:02:59]} 5. Bf4 {[%clk 0:02:44.6]} 5... c5
{[%clk 0:02:58.2]} 6. e3 {[%clk 0:02:45.5]} 6... cxd4 {[%clk 0:02:55.9]} 7. exd4
{[%clk 0:02:39.7]} 7... O-O {[%clk 0:02:55.8]} 8. c5 {[%clk 0:02:38.3]} 8... b6
{[%clk 0:02:54.9]} 9. b4 {[%clk 0:02:37.5]} 9... a5 {[%clk 0:02:54.9]} 10. a3
{[%clk 0:02:31.5]} 10... Ne4 {[%clk 0:02:30.4]} 11. Nb5 {[%clk 0:02:15.6]} 11...
axb4 {[%clk 0:02:23.4]} 12. axb4 {[%clk 0:02:09.3]} 12... Rxa1 {[%clk
0:02:22.6]} 13. Qxa1 {[%clk 0:02:10.2]} 13... Nc6 {[%clk 0:02:15.2]} 14. Bc7
{[%clk 0:01:44]} 14... Qd7 {[%clk 0:02:15.1]} 15. Bxb6 {[%clk 0:01:42.4]} 15...
Nxb4 {[%clk 0:02:13.3]} 16. Qa4 {[%clk 0:01:41.9]} 16... Nc6 {[%clk 0:02:02.6]}
17. Bd3 {[%clk 0:01:36]} 17... e5 {[%clk 0:01:47.3]} 18. O-O {[%clk 0:00:59.4]}
18... Bf6 {[%clk 0:01:46.5]} 19. Nc7 {[%clk 0:00:43.2]} 19... exd4 {[%clk
0:01:39.8]} 20. Qa8 {[%clk 0:00:18.4]} 20... Nb4 {[%clk 0:01:21.9]} 21. Bb5
{[%clk 0:00:14.3]} 21... Qf5 {[%clk 0:01:22]} 22. Qa4 {[%clk 0:00:08.9]} 22...
Qg6 {[%clk 0:00:37.7]} 23. Qxb4 {[%clk 0:00:06.6]} 23... Bh3 {[%clk 0:00:37.8]}
24. g3 {[%clk 0:00:06.2]} 24... Bxf1 {[%clk 0:00:36.4]} 25. Bxf1 {[%clk
0:00:05.8]} 25... Nc3 {[%clk 0:00:37.2]} 26. c6 {[%clk 0:00:04.4]} 26... Qe4
{[%clk 0:00:36.8]} 27. Kg2 {[%clk 0:00:04.9]} 27... g5 {[%clk 0:00:35.9]} 28. h3
{[%clk 0:00:02.4]} 28... h5 {[%clk 0:00:36.5]} 29. Bxd4 {[%clk 0:00:02.1]} 29...
g4 {[%clk 0:00:36.4]} 30. hxg4 {[%clk 0:00:01.5]} 30... hxg4 {[%clk 0:00:35.4]}
31. Bxc3 {[%clk 0:00:01.6]} 31... Qxf3+ {[%clk 0:00:35]} 32. Kg1 {[%clk
0:00:02.1]} 32... Qxc3 {[%clk 0:00:35.8]} 33. Qxg4+ {[%clk 0:00:02]} 33... Bg7
{[%clk 0:00:35.3]} 34. Nxd5 {[%clk 0:00:02.8]} 34... Qe5 {[%clk 0:00:33.8]} 35.
Qf3 {[%clk 0:00:02.9]} 35... Rc8 {[%clk 0:00:28.9]} 36. Bb5 {[%clk 0:00:02.2]}
36... Qd6 {[%clk 0:00:27.6]} 37. Kg2 {[%clk 0:00:02.2]} 37... Kf8 {[%clk
0:00:26.6]} 38. Qf5 {[%clk 0:00:02]} 38... Qe6 {[%clk 0:00:25.9]} 39. Qf3 {[%clk
0:00:01.9]} 39... Rd8 {[%clk 0:00:25.8]} 40. Nb6 {[%clk 0:00:02.2]} 40... Qd6
{[%clk 0:00:24.8]} 41. Nd7+ {[%clk 0:00:02.6]} 41... Kg8 {[%clk 0:00:23.9]} 42.
Qf5 {[%clk 0:00:03.2]} 42... Re8 {[%clk 0:00:23]} 43. Qf3 {[%clk 0:00:02.6]}
43... Qc7 {[%clk 0:00:21.8]} 44. Bc4 {[%clk 0:00:03]} 44... Re7 {[%clk
0:00:21.7]} 45. Qd5 {[%clk 0:00:03.2]} 45... Qd8 {[%clk 0:00:18.5]} 46. Qd6
{[%clk 0:00:03.4]} 46... Re6 {[%clk 0:00:18.5]} 47. Bxe6 {[%clk 0:00:03.4]}
47... fxe6 {[%clk 0:00:17.7]} 48. Qxe6+ {[%clk 0:00:04.3]} 48... Kh8 {[%clk
0:00:17.6]} 49. Qh3+ {[%clk 0:00:04.4]} 49... Kg8 {[%clk 0:00:17.1]} 50. Qf5
{[%clk 0:00:05.1]} 50... Qe7 {[%clk 0:00:16.9]} 51. Qd5+ {[%clk 0:00:05.4]}
51... Kh7 {[%clk 0:00:15.8]} 52. c7 {[%clk 0:00:05.6]} 52... Qe8 {[%clk
0:00:15.1]} 53. Nb6 {[%clk 0:00:05.3]} 1-0

[Event "Early-Titled-Tuesday-Blitz-September-26-2023"]
[Site "Chess.com"]
[Date "2023.09.26"]
[Round "7"]
[White "GMTalks_Youtube"]
[Black "TheRigos"]
[Result "0-1"]
[WhiteElo "2725"]
[BlackElo "2598"]
[TimeControl "180+1"]
[EndTime "9:19:58 PDT"]
[Termination "TheRigos won by checkmate"]

1. e4 {[%clk 0:03:00.9]} 1... e5 {[%clk 0:02:48.4]} 2. Nf3 {[%clk 0:03:00.8]}
2... Nc6 {[%clk 0:02:47.4]} 3. Bc4 {[%clk 0:03:01.3]} 3... Be7 {[%clk
0:02:40.6]} 4. O-O {[%clk 0:03:00.1]} 4... Nf6 {[%clk 0:02:40.4]} 5. d3 {[%clk
0:02:58.9]} 5... O-O {[%clk 0:02:38.7]} 6. Re1 {[%clk 0:02:58.7]} 6... d6 {[%clk
0:02:38.2]} 7. a4 {[%clk 0:02:58.1]} 7... a5 {[%clk 0:02:34]} 8. h3 {[%clk
0:02:55.2]} 8... h6 {[%clk 0:02:09.9]} 9. c3 {[%clk 0:02:51.3]} 9... Be6 {[%clk
0:02:10.4]} 10. Nbd2 {[%clk 0:02:37.4]} 10... Nd7 {[%clk 0:01:56.2]} 11. Qe2
{[%clk 0:02:05.4]} 11... Bf6 {[%clk 0:01:51.7]} 12. Bxe6 {[%clk 0:01:51.4]}
12... fxe6 {[%clk 0:01:51]} 13. Nf1 {[%clk 0:01:50.7]} 13... Qe8 {[%clk
0:01:31]} 14. N1h2 {[%clk 0:01:49.4]} 14... Qg6 {[%clk 0:01:29.6]} 15. Ng4
{[%clk 0:01:47.7]} 15... Be7 {[%clk 0:01:28.7]} 16. d4 {[%clk 0:01:42]} 16... h5
{[%clk 0:01:27.3]} 17. Ngh2 {[%clk 0:01:40.5]} 17... exd4 {[%clk 0:01:22]} 18.
Nxd4 {[%clk 0:01:31.8]} 18... Nxd4 {[%clk 0:01:05]} 19. cxd4 {[%clk 0:01:31.3]}
19... e5 {[%clk 0:01:05.4]} 20. Qc4+ {[%clk 0:01:10.8]} 20... Qf7 {[%clk
0:01:04.9]} 21. Qxf7+ {[%clk 0:01:06.4]} 21... Rxf7 {[%clk 0:01:05.8]} 22. Be3
{[%clk 0:01:02.5]} 22... exd4 {[%clk 0:01:02.7]} 23. Bxd4 {[%clk 0:01:02.1]}
23... Bf6 {[%clk 0:01:03.6]} 24. Bxf6 {[%clk 0:01:00.6]} 24... Rxf6 {[%clk
0:01:02.1]} 25. Nf3 {[%clk 0:00:56.8]} 25... Re8 {[%clk 0:01:02.3]} 26. Nd4
{[%clk 0:00:50.6]} 26... Nc5 {[%clk 0:00:42.6]} 27. f3 {[%clk 0:00:50]} 27... g6
{[%clk 0:00:39.9]} 28. b3 {[%clk 0:00:46.3]} 28... Rf7 {[%clk 0:00:36.9]} 29.
Re3 {[%clk 0:00:43.8]} 29... Kg7 {[%clk 0:00:36.8]} 30. Rae1 {[%clk 0:00:42.7]}
30... Kf6 {[%clk 0:00:36.4]} 31. h4 {[%clk 0:00:38.1]} 31... c6 {[%clk
0:00:35.3]} 32. g3 {[%clk 0:00:29.9]} 32... Rfe7 {[%clk 0:00:35.1]} 33. Kf2
{[%clk 0:00:27.5]} 33... d5 {[%clk 0:00:32]} 34. exd5 {[%clk 0:00:17.7]} 34...
Nd3+ {[%clk 0:00:31.3]} 35. Rxd3 {[%clk 0:00:17.4]} 35... Rxe1 {[%clk
0:00:30.7]} 36. dxc6 {[%clk 0:00:18]} 36... bxc6 {[%clk 0:00:29.9]} 37. Rc3
{[%clk 0:00:17.5]} 37... Rd1 {[%clk 0:00:27.2]} 38. Rxc6+ {[%clk 0:00:17.3]}
38... Kf7 {[%clk 0:00:27.7]} 39. Rc7+ {[%clk 0:00:16.6]} 39... Kf6 {[%clk
0:00:26.1]} 40. Rc6+ {[%clk 0:00:16.4]} 40... Ke5 {[%clk 0:00:23.9]} 41. Ne2
{[%clk 0:00:15.9]} 41... Kd5 {[%clk 0:00:21.2]} 42. Rc2 {[%clk 0:00:15.8]} 42...
Kd6 {[%clk 0:00:14.7]} 43. Nf4 {[%clk 0:00:15.1]} 43... Rb1 {[%clk 0:00:13.1]}
44. Rd2+ {[%clk 0:00:13.2]} 44... Kc5 {[%clk 0:00:11.7]} 45. Rd5+ {[%clk
0:00:12.3]} 45... Kb4 {[%clk 0:00:10.6]} 46. Rb5+ {[%clk 0:00:12.6]} 46... Ka3
{[%clk 0:00:10.1]} 47. g4 {[%clk 0:00:11.4]} 47... Rxb3 {[%clk 0:00:06.7]} 48.
Rxa5 {[%clk 0:00:11]} 48... Ree3 {[%clk 0:00:05.8]} 49. Nxg6 {[%clk 0:00:10]}
49... Rxf3+ {[%clk 0:00:06.7]} 50. Ke2 {[%clk 0:00:09.4]} 50... hxg4 {[%clk
0:00:07.6]} 51. Rg5 {[%clk 0:00:08.4]} 51... Rb2+ {[%clk 0:00:07.8]} 52. Ke1
{[%clk 0:00:08.6]} 52... Rc3 {[%clk 0:00:07.2]} 53. Rd5 {[%clk 0:00:07.3]} 53...
Rh3 {[%clk 0:00:08.1]} 54. Rd1 {[%clk 0:00:01.4]} 54... Rh1# {[%clk 0:00:07.9]}
0-1

[Event "Early-Titled-Tuesday-Blitz-September-26-2023"]
[Site "Chess.com"]
[Date "2023.09.26"]
[Round "7"]
[White "DTChess"]
[Black "SargissyanSargis"]
[Result "1-0"]
[WhiteElo "2598"]
[BlackElo "2425"]
[TimeControl "180+1"]
[EndTime "9:19:58 PDT"]
[Termination "DTChess won on time"]

1. e4 {[%clk 0:03:00.9]} 1... e5 {[%clk 0:02:58.7]} 2. Nf3 {[%clk 0:03:00.8]}
2... Nc6 {[%clk 0:02:59.3]} 3. Bb5 {[%clk 0:02:59.5]} 3... a6 {[%clk 0:02:58.1]}
4. Ba4 {[%clk 0:02:59.4]} 4... Nf6 {[%clk 0:02:58.4]} 5. O-O {[%clk 0:02:59.4]}
5... Be7 {[%clk 0:02:59.1]} 6. Re1 {[%clk 0:02:59.5]} 6... b5 {[%clk 0:02:59.7]}
7. Bb3 {[%clk 0:02:59.7]} 7... d6 {[%clk 0:03:00.2]} 8. c3 {[%clk 0:02:59]} 8...
O-O {[%clk 0:03:00.7]} 9. h3 {[%clk 0:02:59.2]} 9... Bb7 {[%clk 0:03:01]} 10. d4
{[%clk 0:02:59.2]} 10... Re8 {[%clk 0:03:00.9]} 11. Nbd2 {[%clk 0:02:56.7]}
11... h6 {[%clk 0:02:58.4]} 12. Bc2 {[%clk 0:02:56.6]} 12... Bf8 {[%clk
0:02:59.1]} 13. d5 {[%clk 0:02:52.6]} 13... Ne7 {[%clk 0:02:54.6]} 14. b3 {[%clk
0:02:52.4]} 14... c6 {[%clk 0:02:45]} 15. c4 {[%clk 0:02:52.6]} 15... cxd5
{[%clk 0:02:45.7]} 16. cxd5 {[%clk 0:02:51.7]} 16... Nexd5 {[%clk 0:02:31.6]}
17. exd5 {[%clk 0:02:50.7]} 17... Nxd5 {[%clk 0:02:32.3]} 18. Bb2 {[%clk
0:02:44.6]} 18... Rc8 {[%clk 0:02:31.7]} 19. Be4 {[%clk 0:02:37.4]} 19... Qb6
{[%clk 0:02:22.9]} 20. Nf1 {[%clk 0:02:28.8]} 20... Nf4 {[%clk 0:02:22.3]} 21.
Bxb7 {[%clk 0:02:22]} 21... Qxb7 {[%clk 0:02:22.9]} 22. Ng3 {[%clk 0:02:18.6]}
22... f6 {[%clk 0:02:20.9]} 23. Bc1 {[%clk 0:02:07.3]} 23... Ne6 {[%clk
0:02:15.2]} 24. Nf5 {[%clk 0:01:58.3]} 24... d5 {[%clk 0:02:13.8]} 25. Nh2
{[%clk 0:01:53]} 25... d4 {[%clk 0:02:06.5]} 26. Qg4 {[%clk 0:01:51.3]} 26...
Kh7 {[%clk 0:02:02.4]} 27. Nh4 {[%clk 0:01:48.9]} 27... g5 {[%clk 0:01:56.9]}
28. Qf5+ {[%clk 0:01:45.9]} 28... Kh8 {[%clk 0:01:53.5]} 29. Qxf6+ {[%clk
0:01:35.3]} 29... Bg7 {[%clk 0:01:54.1]} 30. Ng6+ {[%clk 0:01:34.2]} 30... Kg8
{[%clk 0:01:43.7]} 31. Qf5 {[%clk 0:01:32.4]} 31... d3 {[%clk 0:01:37.8]} 32.
Be3 {[%clk 0:01:23.2]} 32... e4 {[%clk 0:01:32.1]} 33. Rac1 {[%clk 0:01:18.2]}
33... Qf7 {[%clk 0:01:19.5]} 34. g4 {[%clk 0:01:05.9]} 34... Bb2 {[%clk
0:01:07.2]} 35. Rxc8 {[%clk 0:01:03.9]} 35... Rxc8 {[%clk 0:01:06.6]} 36. Qxe4
{[%clk 0:00:59.3]} 36... Rd8 {[%clk 0:00:59.5]} 37. Ne5 {[%clk 0:00:52.7]} 37...
Qf6 {[%clk 0:00:42]} 38. Nxd3 {[%clk 0:00:48.3]} 38... Bc3 {[%clk 0:00:34.2]}
39. Rd1 {[%clk 0:00:41.7]} 39... Nd4 {[%clk 0:00:29.9]} 40. Kg2 {[%clk
0:00:31.7]} 40... b4 {[%clk 0:00:16.2]} 41. Nf3 {[%clk 0:00:29.9]} 41... Ne6
{[%clk 0:00:13.3]} 42. h4 {[%clk 0:00:24.8]} 42... Rf8 {[%clk 0:00:12.4]} 43.
hxg5 {[%clk 0:00:24]} 43... hxg5 {[%clk 0:00:12.3]} 44. Rh1 {[%clk 0:00:23.8]}
44... Rf7 {[%clk 0:00:09.4]} 45. Qa8+ {[%clk 0:00:23.5]} 45... Rf8 {[%clk
0:00:09.3]} 46. Qe4 {[%clk 0:00:23.6]} 46... Rf7 {[%clk 0:00:09.3]} 47. Nde5
{[%clk 0:00:24.1]} 47... Bxe5 {[%clk 0:00:08.3]} 48. Nxe5 {[%clk 0:00:24.3]}
48... Re7 {[%clk 0:00:05]} 49. Qa8+ {[%clk 0:00:22.5]} 49... Nf8 {[%clk
0:00:03.9]} 50. Nf3 {[%clk 0:00:20.4]} 50... Rf7 {[%clk 0:00:02.8]} 51. Bxg5
{[%clk 0:00:19.9]} 51... Qe6 {[%clk 0:00:02.1]} 52. Bh4 {[%clk 0:00:17.1]} 52...
Qxg4+ {[%clk 0:00:02.2]} 53. Bg3 {[%clk 0:00:17.7]} 53... Rg7 {[%clk 0:00:01.2]}
54. Qd5+ {[%clk 0:00:17.2]} 54... Rf7 {[%clk 0:00:01.7]} 55. Qxf7+ {[%clk
0:00:15.5]} 55... Kxf7 {[%clk 0:00:01.5]} 56. Ne5+ {[%clk 0:00:15.7]} 1-0

[Event "Early-Titled-Tuesday-Blitz-September-26-2023"]
[Site "Chess.com"]
[Date "2023.09.26"]
[Round "7"]
[White "EvgenyBurmakin"]
[Black "a-z30"]
[Result "1-0"]
[WhiteElo "2336"]
[BlackElo "2512"]
[TimeControl "180+1"]
[EndTime "9:19:59 PDT"]
[Termination "EvgenyBurmakin won by checkmate"]

1. e4 {[%clk 0:03:00.9]} 1... d6 {[%clk 0:02:59.1]} 2. d4 {[%clk 0:02:59.8]}
2... Nf6 {[%clk 0:02:59.4]} 3. Nc3 {[%clk 0:03:00]} 3... g6 {[%clk 0:02:59.8]}
4. Be3 {[%clk 0:02:58.6]} 4... Bg7 {[%clk 0:03:00]} 5. f3 {[%clk 0:02:58.9]}
5... O-O {[%clk 0:03:00.2]} 6. Qd2 {[%clk 0:02:59.3]} 6... e5 {[%clk 0:03:00.5]}
7. Nge2 {[%clk 0:02:58.1]} 7... Nc6 {[%clk 0:03:00.2]} 8. O-O-O {[%clk
0:02:54.3]} 8... exd4 {[%clk 0:03:01.1]} 9. Nxd4 {[%clk 0:02:53.7]} 9... Nxd4
{[%clk 0:03:02]} 10. Bxd4 {[%clk 0:02:54.1]} 10... Be6 {[%clk 0:03:02.9]} 11.
Kb1 {[%clk 0:02:51.3]} 11... c5 {[%clk 0:02:57.3]} 12. Be3 {[%clk 0:02:48.7]}
12... b5 {[%clk 0:02:54.1]} 13. Qxd6 {[%clk 0:02:35.6]} 13... Qa5 {[%clk
0:02:52.6]} 14. Qxc5 {[%clk 0:02:27.7]} 14... Nd7 {[%clk 0:01:28.9]} 15. Qxb5
{[%clk 0:01:09.4]} 15... Bxc3 {[%clk 0:01:25.2]} 16. Qxa5 {[%clk 0:01:05.5]}
16... Bxa5 {[%clk 0:01:26.1]} 17. Bb5 {[%clk 0:01:00.5]} 17... Ne5 {[%clk
0:01:16.4]} 18. Bd4 {[%clk 0:00:48.6]} 18... f6 {[%clk 0:00:37]} 19. b3 {[%clk
0:00:37.7]} 19... Bb6 {[%clk 0:00:35.6]} 20. Bb2 {[%clk 0:00:34.9]} 20... Rfd8
{[%clk 0:00:34.5]} 21. a4 {[%clk 0:00:26.2]} 21... a5 {[%clk 0:00:32.9]} 22. Bc3
{[%clk 0:00:21.6]} 22... Rxd1+ {[%clk 0:00:32.1]} 23. Rxd1 {[%clk 0:00:21.6]}
23... Rd8 {[%clk 0:00:32.9]} 24. Rxd8+ {[%clk 0:00:20.2]} 24... Bxd8 {[%clk
0:00:33.8]} 25. Kc1 {[%clk 0:00:17.6]} 25... Kf7 {[%clk 0:00:33.3]} 26. Kd2
{[%clk 0:00:18]} 26... g5 {[%clk 0:00:32.2]} 27. Ke3 {[%clk 0:00:15.3]} 27... h5
{[%clk 0:00:31.3]} 28. Bd4 {[%clk 0:00:13]} 28... Nd7 {[%clk 0:00:29.6]} 29. Bc6
{[%clk 0:00:08.7]} 29... Bb6 {[%clk 0:00:24.5]} 30. Bxb6 {[%clk 0:00:06.4]}
30... Nxb6 {[%clk 0:00:23.6]} 31. Kd4 {[%clk 0:00:07.1]} 31... Ke7 {[%clk
0:00:23]} 32. Kc5 {[%clk 0:00:06.5]} 32... Nd7+ {[%clk 0:00:13.4]} 33. Kb5
{[%clk 0:00:07]} 33... Ne5 {[%clk 0:00:12.5]} 34. Bb7 {[%clk 0:00:06]} 34... h4
{[%clk 0:00:10.6]} 35. Kxa5 {[%clk 0:00:05.2]} 35... Kd6 {[%clk 0:00:10.5]} 36.
c4 {[%clk 0:00:03.3]} 36... h3 {[%clk 0:00:10.6]} 37. gxh3 {[%clk 0:00:01.8]}
37... Nxf3 {[%clk 0:00:08.8]} 38. Kb6 {[%clk 0:00:01.9]} 38... Ne5 {[%clk
0:00:04.8]} 39. c5+ {[%clk 0:00:02.8]} 39... Ke7 {[%clk 0:00:03.7]} 40. b4
{[%clk 0:00:03.7]} 40... Nd7+ {[%clk 0:00:03]} 41. Kc7 {[%clk 0:00:04.2]} 41...
Ne5 {[%clk 0:00:02.9]} 42. c6 {[%clk 0:00:03.8]} 42... Nc4 {[%clk 0:00:03.8]}
43. b5 {[%clk 0:00:04.1]} 43... f5 {[%clk 0:00:02.5]} 44. exf5 {[%clk
0:00:02.2]} 44... Bxf5 {[%clk 0:00:03.4]} 45. Bc8 {[%clk 0:00:02.6]} 45... Bxh3
{[%clk 0:00:04.3]} 46. Bxh3 {[%clk 0:00:01.7]} 46... Nb2 {[%clk 0:00:04.2]} 47.
Bf1 {[%clk 0:00:01.8]} 47... Nc4 {[%clk 0:00:05.1]} 48. b6 {[%clk 0:00:02.5]}
48... Ne5 {[%clk 0:00:06]} 49. b7 {[%clk 0:00:03]} 49... Nxc6 {[%clk 0:00:05.4]}
50. b8=Q {[%clk 0:00:03.9]} 50... Nxb8 {[%clk 0:00:06.1]} 51. Kxb8 {[%clk
0:00:04]} 51... Kf6 {[%clk 0:00:07]} 52. a5 {[%clk 0:00:04.3]} 52... Ke5 {[%clk
0:00:07.9]} 53. a6 {[%clk 0:00:05.1]} 53... Kf4 {[%clk 0:00:08.8]} 54. a7 {[%clk
0:00:06]} 54... Ke3 {[%clk 0:00:09.7]} 55. a8=Q {[%clk 0:00:06.2]} 55... Kf2
{[%clk 0:00:10.6]} 56. Qg2+ {[%clk 0:00:05.9]} 56... Ke1 {[%clk 0:00:11]} 57.
Qe2# {[%clk 0:00:06]} 1-0

[Event "Early-Titled-Tuesday-Blitz-September-26-2023"]
[Site "Chess.com"]
[Date "2023.09.26"]
[Round "7"]
[White "MidnightFox"]
[Black "profedechess93"]
[Result "1-0"]
[WhiteElo "2469"]
[BlackElo "2658"]
[TimeControl "180+1"]
[EndTime "9:20:00 PDT"]
[Termination "MidnightFox won by resignation"]

1. d4 {[%clk 0:03:00.9]} 1... d5 {[%clk 0:02:59.9]} 2. c4 {[%clk 0:03:00.5]}
2... c6 {[%clk 0:02:59.8]} 3. Nf3 {[%clk 0:02:59.8]} 3... Nf6 {[%clk 0:02:59.9]}
4. Nc3 {[%clk 0:02:57.2]} 4... dxc4 {[%clk 0:03:00.3]} 5. e4 {[%clk 0:02:57.8]}
5... b5 {[%clk 0:03:00.2]} 6. e5 {[%clk 0:02:57.7]} 6... Nd5 {[%clk 0:03:00.7]}
7. a4 {[%clk 0:02:58.1]} 7... e6 {[%clk 0:03:01]} 8. axb5 {[%clk 0:02:58.1]}
8... Nxc3 {[%clk 0:03:01]} 9. bxc3 {[%clk 0:02:59]} 9... cxb5 {[%clk 0:03:01.7]}
10. Ng5 {[%clk 0:02:59.6]} 10... Bb7 {[%clk 0:03:02]} 11. Qh5 {[%clk 0:02:52.4]}
11... g6 {[%clk 0:02:59.9]} 12. Qg4 {[%clk 0:02:52.5]} 12... Be7 {[%clk
0:02:50.4]} 13. h4 {[%clk 0:02:49.2]} 13... h6 {[%clk 0:02:22.7]} 14. Ne4 {[%clk
0:02:44.9]} 14... h5 {[%clk 0:02:15.8]} 15. Qf4 {[%clk 0:02:42.6]} 15... Bxe4
{[%clk 0:01:36.9]} 16. Qxe4 {[%clk 0:02:42.4]} 16... Qd5 {[%clk 0:01:36.8]} 17.
Qf4 {[%clk 0:02:18.3]} 17... Nc6 {[%clk 0:01:18.6]} 18. Be2 {[%clk 0:02:17.6]}
18... a5 {[%clk 0:01:11.5]} 19. Bf3 {[%clk 0:02:16.1]} 19... Qd7 {[%clk
0:01:12]} 20. Be3 {[%clk 0:01:54.3]} 20... Rd8 {[%clk 0:01:03.4]} 21. O-O {[%clk
0:01:50.4]} 21... b4 {[%clk 0:00:59]} 22. cxb4 {[%clk 0:01:47.3]} 22... axb4
{[%clk 0:00:55.5]} 23. Rfd1 {[%clk 0:01:20.4]} 23... O-O {[%clk 0:00:37]} 24. d5
{[%clk 0:00:51.3]} 24... exd5 {[%clk 0:00:36.1]} 25. Bxd5 {[%clk 0:00:45.3]}
25... Qc7 {[%clk 0:00:35.9]} 26. Qxc4 {[%clk 0:00:40.6]} 26... Rc8 {[%clk
0:00:36.1]} 27. e6 {[%clk 0:00:34.4]} 27... Ne5 {[%clk 0:00:32.3]} 28. exf7+
{[%clk 0:00:31.5]} 28... Kh7 {[%clk 0:00:32.9]} 29. Qf4 {[%clk 0:00:24.6]} 29...
Ng4 {[%clk 0:00:30.5]} 30. Be6 {[%clk 0:00:16.5]} 30... Qxf4 {[%clk 0:00:26.9]}
31. Bxf4 {[%clk 0:00:17.4]} 31... Rc6 {[%clk 0:00:26.8]} 32. Bd5 {[%clk
0:00:08.2]} 32... Rf6 {[%clk 0:00:26.4]} 33. Bg5 {[%clk 0:00:08.1]} 33... R6xf7
{[%clk 0:00:26.6]} 34. Bxf7 {[%clk 0:00:07.6]} 34... Rxf7 {[%clk 0:00:27.5]} 35.
Ra7 {[%clk 0:00:07.3]} 35... Bxg5 {[%clk 0:00:21.6]} 36. Rxf7+ {[%clk
0:00:06.5]} 36... Kg8 {[%clk 0:00:22.3]} 37. Rb7 {[%clk 0:00:06.2]} 37... Bxh4
{[%clk 0:00:19.8]} 38. g3 {[%clk 0:00:06.6]} 38... Bf6 {[%clk 0:00:18.8]} 39.
Rxb4 {[%clk 0:00:06.7]} 39... Ne5 {[%clk 0:00:19]} 40. Rd6 {[%clk 0:00:06.1]}
40... Be7 {[%clk 0:00:12.8]} 41. Rb8+ {[%clk 0:00:05.2]} 41... Kf7 {[%clk
0:00:12.2]} 42. Ra6 {[%clk 0:00:05.7]} 42... h4 {[%clk 0:00:09.8]} 43. Rb7
{[%clk 0:00:04.4]} 43... Ke8 {[%clk 0:00:07]} 44. Re6 {[%clk 0:00:04]} 44...
Nf3+ {[%clk 0:00:05.1]} 45. Kg2 {[%clk 0:00:03.5]} 45... h3+ {[%clk 0:00:03.6]}
46. Kh1 {[%clk 0:00:03.1]} 46... Ng5 {[%clk 0:00:03.3]} 47. Rexe7+ {[%clk
0:00:03.4]} 47... Kd8 {[%clk 0:00:04.2]} 48. Rg7 {[%clk 0:00:03.3]} 48... Kc8
{[%clk 0:00:03.6]} 49. Ra7 {[%clk 0:00:04]} 49... Kb8 {[%clk 0:00:03.1]} 50.
Rab7+ {[%clk 0:00:04.5]} 50... Kc8 {[%clk 0:00:02.9]} 51. Rbc7+ {[%clk
0:00:05.2]} 51... Kd8 {[%clk 0:00:03.2]} 52. Ra7 {[%clk 0:00:04.8]} 1-0